bitfinex/quotes_BTCUSD_20250512
["timestamp","ask_amount","ask_price","bid_price","bid_amount"]
[1747021180659,0.30018574,103790.0,103780.0,1.28814437]
[1747021181333,0.3098203,103790.0,103780.0,1.28814437]
[1747021181598,0.30982011,103790.0,103780.0,1.83708721]
[1747021181822,0.30982011,103790.0,103780.0,1.62814437]
[1747021182038,0.30982011,103790.0,103780.0,1.63778013]
[1747021182264,0.30982011,103790.0,103780.0,1.64741571]
[1747021182487,0.30982011,103790.0,103780.0,1.68595878]
[1747021182699,0.30982011,103790.0,103780.0,1.63778013]
[1747021183142,0.02126846,103790.0,103780.0,1.84672297]
[1747021183356,0.01163409,103790.0,103780.0,1.86599347]
[1747021183573,0.02126846,103790.0,103780.0,1.86599347]
[1747021183783,0.03090302,103790.0,103780.0,1.86599347]
[1747021184438,0.03090302,103790.0,103780.0,2.26599347]
[1747021185294,0.02126846,103790.0,103780.0,2.26599347]
[1747021185707,0.03090302,103790.0,103780.0,2.26599347]
[1747021186555,0.01163409,103790.0,103780.0,2.26599347]
[1747021186765,0.02126837,103790.0,103780.0,2.26599347]
[1747021187182,0.01163409,103790.0,103780.0,2.26599347]
[1747021187383,0.002,103790.0,103780.0,2.26599347]
[1747021187618,0.002,103790.0,103780.0,2.29489647]
[1747021188261,0.002,103790.0,103780.0,2.40725647]
[1747021188471,0.011634,103790.0,103780.0,2.40725647]
[1747021188680,0.002,103790.0,103780.0,2.40725647]
[1747021189334,0.010634,103790.0,103780.0,2.40725647]
[1747021189769,0.011634,103790.0,103780.0,2.40725647]
[1747021190061,0.010634,103790.0,103780.0,2.40725647]
[1747021190694,0.011634,103790.0,103780.0,2.40725647]
[1747021191122,0.011634,103790.0,103780.0,2.29489647]
[1747021191341,0.011634,103790.0,103780.0,2.40725647]
[1747021191564,0.02126818,103790.0,103780.0,2.40725647]
[1747021191802,0.011634,103790.0,103780.0,2.40725647]
[1747021194467,0.011634,103790.0,103780.0,1.92496417]
[1747021194684,0.02126818,103790.0,103780.0,2.24649237]
[1747021194896,0.011634,103790.0,103780.0,2.24649237]
[1747021195540,0.011634,103790.0,103780.0,2.40725647]
[1747021195973,0.21396497,103790.0,103780.0,2.23685726]
[1747021196195,0.22360046,103790.0,103780.0,1.82480737]
[1747021196476,0.22360046,103790.0,103780.0,1.31737632]
[1747021196708,0.22360046,103790.0,103780.0,1.66701153]
[1747021196944,0.22360046,103790.0,103780.0,1.63810853]
[1747021197170,0.22260046,103790.0,103780.0,1.63810853]
[1747021197390,0.03090349,103790.0,103780.0,1.64774364]
[1747021197601,0.04053823,103790.0,103780.0,1.64774364]
[1747021198033,0.03953823,103790.0,103780.0,1.64774364]
[1747021198252,0.02990349,103790.0,103780.0,1.64774364]
[1747021198476,0.04053823,103790.0,103780.0,1.64774364]
[1747021198810,0.23323502,103790.0,103780.0,1.63810853]
[1747021199171,0.24286985,103790.0,103780.0,1.63810853]
[1747021201255,0.24286985,103790.0,103780.0,1.62847332]
[1747021201469,0.26513557,103790.0,103780.0,1.57065937]
[1747021201682,0.25550101,103790.0,103780.0,1.54618269]
[1747021201865,0.25550101,103790.0,103780.0,1.55581808]
[1747021202432,0.25550101,103790.0,103780.0,1.56545338]
[1747021204005,0.25550101,103790.0,103780.0,1.55581808]
[1747021204431,0.25550101,103790.0,103780.0,1.56545338]
[1747021204648,0.35135531,103790.0,103780.0,0.63378954]
[1747021204870,0.34172066,103790.0,103780.0,0.61343064]
[1747021205511,0.34172066,103790.0,103780.0,0.50587064]
[1747021205973,0.45440066,103790.0,103780.0,0.50587064]
[1747021211190,0.45440066,103790.0,103780.0,0.66663474]
[1747021213119,0.34172066,103790.0,103780.0,0.66663474]
[1747021213337,0.33208555,103790.0,103780.0,0.72444905]
[1747021213545,0.35135447,103790.0,103780.0,1.9321135]
[1747021214056,0.35135447,103790.0,103780.0,1.92247774]
[1747021215276,0.34172029,103790.0,103780.0,1.92247774]
[1747021215534,0.34172029,103790.0,103780.0,1.84585347]
[1747021217711,0.33208583,103790.0,103780.0,1.84585347]
[1747021219941,0.32245109,103790.0,103780.0,1.78722647]
[1747021220157,0.32245109,103790.0,103780.0,1.04286447]
[1747021220381,0.32245109,103790.0,103780.0,0.85145447]
[1747021220628,0.32245109,103790.0,103780.0,0.59001047]
[1747021222979,0.32245109,103790.0,103780.0,0.34510654]
[1747021225127,0.32245109,103790.0,103780.0,0.59001047]
[1747021227533,0.32245109,103790.0,103780.0,0.24490393]
[1747021227751,0.32245109,103790.0,103780.0,0.24962175]
[1747021227950,0.32245109,103790.0,103780.0,0.2782275]
[1747021228983,0.32245109,103790.0,103780.0,0.00471782]
[1747021229207,0.20235093,103780.0,103770.0,0.28133963]
[1747021229428,0.32980523,103780.0,103770.0,0.28182483]
[1747021230247,0.33080523,103780.0,103770.0,0.28182483]
[1747021230514,0.33180523,103780.0,103770.0,0.31309856]
[1747021231396,0.33180523,103780.0,103770.0,0.58016756]
[1747021232583,0.34144071,103780.0,103770.0,0.58016756]
[1747021232801,0.33180523,103780.0,103770.0,0.58016756]
[1747021234994,0.33180523,103780.0,103770.0,0.82507149]
[1747021235199,0.33180523,103780.0,103770.0,0.58490304]
[1747021238354,0.33180523,103780.0,103770.0,0.92490304]
[1747021239337,0.33180523,103780.0,103770.0,0.84076209]
[1747021247935,0.33180523,103780.0,103770.0,0.73919909]
[1747021248388,0.33180523,103780.0,103770.0,0.54241936]
[1747021249758,0.33180523,103780.0,103770.0,0.36731747]
[1747021250157,0.33180523,103780.0,103770.0,0.52808045]
[1747021251394,0.44240523,103780.0,103770.0,0.36731747]
[1747021251657,0.55356523,103780.0,103770.0,0.00522068]
[1747021251865,0.55456523,103780.0,103770.0,0.00522068]
[1747021252075,0.55556523,103780.0,103770.0,0.00522068]
[1747021252290,0.56033216,103780.0,103770.0,0.00522068]
[1747021252512,0.56233216,103780.0,103770.0,0.00522068]
[1747021253079,0.56133216,103780.0,103770.0,0.00522068]
[1747021254803,0.56233216,103780.0,103770.0,0.00522068]
[1747021255817,1.24633216,103780.0,103770.0,0.00522068]
[1747021256641,1.24633216,103780.0,103770.0,0.16598366]
[1747021258088,0.23487044,103770.0,103760.0,0.17978263]
[1747021258315,0.33072474,103770.0,103760.0,0.34054561]
[1747021259112,0.33172474,103770.0,103760.0,0.34054561]
[1747021259317,0.33272474,103770.0,103760.0,0.34054561]
[1747021260127,0.33272474,103770.0,103760.0,0.51978263]
[1747021260980,0.33272474,103770.0,103760.0,0.68054561]
[1747021261477,0.33272474,103770.0,103760.0,0.51978263]
[1747021265461,0.33272474,103770.0,103760.0,0.68054561]
[1747021265703,0.33272474,103770.0,103760.0,0.68463476]
[1747021268609,0.33272474,103770.0,103760.0,1.02070076]
[1747021272078,0.33272474,103770.0,103760.0,0.68463476]
[1747021272512,0.33272474,103770.0,103760.0,0.52387178]
[1747021272950,0.33272474,103770.0,103760.0,0.68463476]
[1747021274215,0.34236115,103770.0,103760.0,1.84322774]
[1747021274449,0.01163613,103770.0,103760.0,1.89141567]
[1747021274697,0.01163586,103770.0,103760.0,1.91528989]
[1747021274939,0.0212719,103770.0,103760.0,1.91528989]
[1747021275171,0.04054435,103770.0,103760.0,1.91528989]
[1747021276106,0.04054435,103770.0,103760.0,2.15452691]
[1747021276797,0.04054435,103770.0,103760.0,2.26608691]
[1747021277001,0.05018086,103770.0,103760.0,2.26608691]
[1747021277180,0.04054435,103770.0,103760.0,2.26608691]
[1747021277935,0.05018076,103770.0,103760.0,2.26608691]
[1747021278380,0.22364317,103770.0,103760.0,2.24221279]
[1747021278589,0.25414317,103770.0,103760.0,2.19402476]
[1747021278792,0.23487044,103770.0,103760.0,1.38394476]
[1747021279009,0.23487044,103770.0,103760.0,1.35663976]
[1747021279198,0.23487044,103770.0,103760.0,1.34565376]
[1747021279820,0.23487044,103770.0,103760.0,1.23409376]
[1747021280030,0.23487044,103770.0,103760.0,1.07333078]
[1747021280462,0.23487044,103770.0,103760.0,1.23409376]
[1747021281344,0.23487044,103770.0,103760.0,1.1575745]
[1747021281835,0.22523393,103770.0,103760.0,1.1575745]
[1747021282266,0.22523393,103770.0,103760.0,0.76721212]
[1747021282485,0.22523393,103770.0,103760.0,0.7575745]
[1747021284581,0.22523393,103770.0,103760.0,0.76721212]
[1747021285011,0.22523393,103770.0,103760.0,0.7575745]
[1747021286198,0.22523393,103770.0,103760.0,1.1575745]
[1747021286948,0.32108823,103770.0,103760.0,0.6081155]
[1747021287420,0.32108823,103770.0,103760.0,0.7311595]
[1747021288161,0.04600831,103770.0,103760.0,1.04362845]
[1747021288393,0.23327893,103770.0,103760.0,1.04362854]
[1747021288613,0.0212719,103770.0,103760.0,1.05326551]
[1747021288833,0.03090813,103770.0,103760.0,1.05326551]
[1747021289042,0.02990813,103770.0,103760.0,1.05326551]
[1747021289522,0.01063586,103770.0,103760.0,1.05326551]
[1747021289769,0.002,103770.0,103760.0,1.05886551]
[1747021290015,0.01163595,103770.0,103760.0,1.05886551]
[1747021290558,0.01163586,103770.0,103760.0,1.05886551]
[1747021290971,0.01163586,103770.0,103760.0,1.45886551]
[1747021292468,0.002,103770.0,103760.0,1.45886551]
[1747021297326,0.01163595,103770.0,103760.0,1.45426551]
[1747021297644,0.02127208,103770.0,103760.0,1.45426551]
[1747021298221,0.002,103770.0,103760.0,1.45426551]
[1747021298763,0.002,103770.0,103760.0,1.45886551]
[1747021299624,0.001,103770.0,103760.0,1.45786551]
[1747021300149,0.002,103770.0,103760.0,1.46186551]
[1747021301204,0.001,103770.0,103760.0,1.46186551]
[1747021301448,0.002,103770.0,103760.0,1.46386551]
[1747021301656,0.01975369,103780.0,103770.0,0.41205574]
[1747021301657,0.00048365,103780.0,103770.0,0.41205574]
[1747021301867,0.00048365,103780.0,103770.0,3.48106684]
[1747021302430,0.00048365,103780.0,103770.0,3.88106684]
[1747021302968,0.00148365,103780.0,103770.0,3.88306684]
[1747021305545,0.00148365,103780.0,103770.0,3.71442494]
[1747021308309,0.00148365,103780.0,103770.0,3.97096499]
[1747021308590,0.11753452,103800.0,103790.0,0.06744273]
[1747021308805,0.11753452,103800.0,103790.0,2.98439438]
[1747021309023,0.13680132,103800.0,103790.0,3.09790095]
[1747021309241,0.13680122,103800.0,103790.0,3.41927245]
[1747021309453,0.13680122,103800.0,103790.0,3.81927245]
[1747021309673,0.06059986,103800.0,103790.0,3.81927245]
[1747021309889,0.06259986,103800.0,103790.0,3.82027245]
[1747021310101,0.34211316,103800.0,103790.0,1.64735006]
[1747021310312,0.3132133,103800.0,103790.0,0.34691322]
[1747021310532,0.4090676,103800.0,103790.0,0.00691322]
[1747021311553,0.4070676,103800.0,103790.0,0.00591322]
[1747021311940,0.4070676,103800.0,103790.0,0.00891322]
[1747021314634,0.33086624,103800.0,103790.0,0.00891322]
[1747021319113,0.44238624,103800.0,103790.0,0.00891322]
[1747021321373,0.44914478,103800.0,103790.0,0.00891322]
[1747021321792,1.13314478,103800.0,103790.0,0.00891322]
[1747021324175,1.13314505,103800.0,103790.0,0.00891322]
[1747021327109,1.13314505,103800.0,103790.0,0.25386652]
[1747021327535,1.13318505,103800.0,103790.0,0.25386652]
[1747021327734,1.02162505,103800.0,103790.0,0.25386652]
[1747021327954,1.01486624,103800.0,103790.0,0.25386652]
[1747021328599,1.01486624,103800.0,103790.0,0.00891322]
[1747021339554,1.02162836,103800.0,103790.0,0.00891322]
[1747021340314,1.02162836,103800.0,103790.0,0.16965197]
[1747021342244,1.02162836,103800.0,103790.0,0.00891322]
[1747021352235,1.02162836,103800.0,103790.0,0.16965197]
[1747021352442,1.00642808,103800.0,103790.0,1.78645872]
[1747021352647,0.81651656,103800.0,103790.0,1.84426709]
[1747021352929,0.00776212,103800.0,103790.0,1.84426746]
[1747021353110,0.01063307,103800.0,103790.0,1.8681361]
[1747021353470,0.001,103800.0,103790.0,1.8681361]
[1747021353935,0.001,103800.0,103790.0,1.9796561]
[1747021356379,0.001,103800.0,103790.0,2.3796561]
[1747021357620,0.001,103800.0,103790.0,2.19622082]
[1747021357861,0.001,103800.0,103790.0,1.9804488]
[1747021359887,0.0481622,103810.0,103800.0,0.06743625]
[1747021360169,0.02904192,103810.0,103800.0,3.03165121]
[1747021360431,0.03867453,103810.0,103800.0,3.02972475]
[1747021360883,0.03867453,103810.0,103800.0,3.76972475]
[1747021361122,0.23133494,103810.0,103800.0,3.43861408]
[1747021361368,0.24643494,103810.0,103800.0,2.0994363]
[1747021361637,0.24743494,103810.0,103800.0,2.10906984]
[1747021362131,0.24843494,103810.0,103800.0,2.11006984]
[1747021362377,0.24843494,103810.0,103800.0,1.7789588]
[1747021362599,0.26423494,103810.0,103800.0,2.1004363]
[1747021363027,0.26423494,103810.0,103800.0,2.11006984]
[1747021364076,0.24843494,103810.0,103800.0,2.11006984]
[1747021364414,0.24843494,103810.0,103800.0,2.09080267]
[1747021365031,0.24527019,103810.0,103800.0,2.0329995]
[1747021365268,0.24527019,103810.0,103800.0,2.05226722]
[1747021365533,0.24527019,103810.0,103800.0,2.06190094]
[1747021366225,0.24527019,103810.0,103800.0,2.10043658]
[1747021368510,0.24527019,103810.0,103800.0,1.58895658]
[1747021369699,0.24527019,103810.0,103800.0,1.98895658]
[1747021371192,0.24527019,103810.0,103800.0,1.97932286]
[1747021371995,0.24527019,103810.0,103800.0,1.98895658]
[1747021372444,0.22917019,103810.0,103800.0,1.99859021]
[1747021372637,0.00214503,103810.0,103800.0,1.98895658]
[1747021372843,0.00214503,103810.0,103800.0,2.17356213]
[1747021375778,0.90917385,103830.0,103800.0,2.12079389]
[1747021375979,0.01172378,103830.0,103820.0,0.89927118]
[1747021376173,0.0020934,103830.0,103820.0,3.42400218]
[1747021376375,0.02135444,103830.0,103820.0,3.42400218]
[1747021376608,0.02135444,103830.0,103820.0,3.82400218]
[1747021376860,0.0020934,103830.0,103820.0,3.82400218]
[1747021377083,0.01172369,103830.0,103820.0,3.82860218]
[1747021377319,0.03098473,103830.0,103820.0,3.66326343]
[1747021377574,0.03098464,103830.0,103820.0,3.66326343]
[1747021377793,0.02335407,103830.0,103820.0,3.66426343]
[1747021378024,0.02335407,103830.0,103820.0,3.66326343]
[1747021378718,0.03298454,103830.0,103820.0,3.66326343]
[1747021378943,0.03298454,103830.0,103820.0,3.6779886]
[1747021379171,0.01372369,103830.0,103820.0,3.66326343]
[1747021379630,0.02335407,103830.0,103820.0,3.67898347]
[1747021380781,0.0040934,103830.0,103820.0,3.84432222]
[1747021383584,0.0040934,103830.0,103820.0,3.83972222]
[1747021384178,0.0040934,103830.0,103820.0,3.85420987]
[1747021392113,0.0192934,103830.0,103820.0,3.85420987]
[1747021393013,0.04402387,103830.0,103820.0,3.85420987]
[1747021393244,0.0343934,103830.0,103820.0,3.85420987]
[1747021393710,0.04402378,103830.0,103820.0,3.85420987]
[1747021393911,0.0343934,103830.0,103820.0,3.85420987]
[1747021394652,0.0192934,103830.0,103820.0,3.85420987]
[1747021394902,0.0040934,103830.0,103820.0,3.85420987]
[1747021395142,0.02722853,103850.0,103840.0,0.08667067]
[1747021395386,0.04648623,103850.0,103840.0,3.20698354]
[1747021395606,0.23907168,103850.0,103840.0,3.03468962]
[1747021395883,0.0176,103850.0,103840.0,3.48980311]
[1747021396149,0.22145026,103860.0,103850.0,0.08666251]
[1747021396395,0.03851095,103860.0,103850.0,1.82889392]
[1747021396626,0.0481392,103860.0,103850.0,1.82889392]
[1747021396870,0.0481392,103860.0,103850.0,2.23852254]
[1747021397106,0.03851095,103860.0,103850.0,2.23852254]
[1747021398034,0.06313911,103860.0,103850.0,2.23952254]
[1747021398567,0.06313911,103860.0,103850.0,2.24052254]
[1747021398917,0.07863911,103860.0,103850.0,2.24052254]
[1747021399152,0.27120676,103860.0,103850.0,2.23089392]
[1747021399598,0.07863985,103860.0,103850.0,2.23089392]
[1747021399806,0.07863985,103860.0,103850.0,2.24052254]
[1747021403162,0.25195138,103860.0,103850.0,2.23089401]
[1747021403605,0.05938447,103860.0,103850.0,2.23089401]
[1747021403860,0.05938447,103860.0,103850.0,2.24052263]
[1747021407617,0.26157972,103860.0,103850.0,2.2212653]
[1747021407794,0.26157972,103860.0,103850.0,2.24052281]
[1747021408299,0.0497552,103860.0,103850.0,2.25015143]
[1747021408558,0.01925529,103860.0,103850.0,2.59015143]
[1747021408738,0.06297419,103870.0,103860.0,0.08665398]
[1747021408993,0.06297419,103870.0,103860.0,3.20692655]
[1747021409203,0.05334705,103870.0,103860.0,3.20500123]
[1747021409408,0.05334705,103870.0,103860.0,3.60500123]
[1747021409620,0.06297419,103870.0,103860.0,3.60500123]
[1747021409821,0.0117201,103870.0,103860.0,3.60500123]
[1747021410210,0.02334687,103870.0,103860.0,3.60500123]
[1747021410433,0.05057382,103870.0,103860.0,3.60500123]
[1747021411547,0.04094687,103870.0,103860.0,3.44426248]
[1747021411760,0.05057382,103870.0,103860.0,3.44426248]
[1747021413498,0.05057382,103870.0,103860.0,3.60500123]
[1747021414258,0.03132001,103870.0,103860.0,3.60500123]
[1747021414722,0.04094668,103870.0,103860.0,3.60500123]
[1747021415427,0.03132001,103870.0,103860.0,3.60500123]
[1747021416064,0.04094668,103870.0,103860.0,3.60500123]
[1747021416484,0.04094668,103870.0,103860.0,3.44426248]
[1747021416915,0.05057345,103870.0,103860.0,3.44426248]
[1747021418829,0.04094668,103870.0,103860.0,3.44426248]
[1747021419246,0.05057354,103870.0,103860.0,3.44426248]
[1747021419677,0.06567354,103870.0,103860.0,3.44426248]
[1747021421248,0.05604668,103870.0,103860.0,3.44426248]
[1747021422543,0.06567345,103870.0,103860.0,3.44426248]
[1747021425719,0.06567345,103870.0,103860.0,3.28637826]
[1747021425877,0.07530031,103870.0,103860.0,3.37303248]
[1747021426084,0.06567345,103870.0,103860.0,3.37303248]
[1747021427850,0.05604668,103870.0,103860.0,3.37303248]
[1747021428266,0.04642001,103870.0,103860.0,3.37303248]
[1747021429106,0.00509343,103870.0,103860.0,3.80888678]
[1747021429351,0.0183,103890.0,103880.0,0.0866373]
[1747021429586,0.01878464,103890.0,103880.0,3.47559926]
[1747021429839,0.03388464,103890.0,103880.0,3.3129358]
[1747021430267,0.03388464,103890.0,103880.0,3.7129358]
[1747021430911,0.03488464,103890.0,103880.0,3.7139358]
[1747021431145,0.05413437,103890.0,103880.0,3.4442398]
[1747021431377,0.05413437,103890.0,103880.0,1.74272857]
[1747021431378,0.27552172,103890.0,103880.0,1.74272857]
[1747021431595,0.06375947,103890.0,103880.0,1.75235441]
[1747021433674,0.05413437,103890.0,103880.0,1.75235441]
[1747021434506,0.05413419,103890.0,103880.0,1.75235441]
[1747021434715,0.06375919,103890.0,103880.0,1.75235441]
[1747021435522,0.0637591,103890.0,103880.0,1.75235441]
[1747021435972,0.05413419,103890.0,103880.0,1.75235441]
[1747021436170,0.05413419,103890.0,103880.0,1.76677626]
[1747021438951,0.07338485,103890.0,103880.0,1.59641167]
[1747021439178,0.07338559,103890.0,103880.0,0.45843195]
[1747021439397,0.06376003,103890.0,103880.0,0.46805779]
[1747021439619,0.0733855,103890.0,103880.0,0.46805779]
[1747021439825,0.0733855,103890.0,103880.0,0.96879654]
[1747021441222,0.0733855,103890.0,103880.0,0.80805779]
[1747021442613,0.27552237,103890.0,103880.0,0.80805797]
[1747021442987,0.26589746,103890.0,103880.0,0.8176839]
[1747021443208,0.25627236,103890.0,103880.0,1.02806708]
[1747021443431,0.25627236,103890.0,103880.0,1.19843204]
[1747021443653,0.25627236,103890.0,103880.0,1.20805816]
[1747021443907,0.23702151,103890.0,103880.0,1.11179419]
[1747021444182,0.32325025,103890.0,103880.0,0.37024344]
[1747021445491,0.32325025,103890.0,103880.0,0.53098219]
[1747021446525,0.32325025,103890.0,103880.0,0.37024344]
[1747021451883,0.32325025,103890.0,103880.0,0.53098219]
[1747021454967,0.32325025,103890.0,103880.0,0.37024344]
[1747021456057,0.32325025,103890.0,103880.0,0.53098219]
[1747021460664,0.00348464,103890.0,103880.0,0.93909699]
[1747021460878,0.00348464,103890.0,103880.0,3.39259799]
[1747021461119,0.01310937,103890.0,103880.0,3.20114924]
[1747021461326,0.00348464,103890.0,103880.0,3.20114924]
[1747021461937,0.00348464,103890.0,103880.0,3.18724624]
[1747021462161,0.00348464,103890.0,103880.0,3.37888499]
[1747021462372,0.00348464,103890.0,103880.0,3.21814624]
[1747021462859,0.00348464,103890.0,103880.0,3.61814624]
[1747021463046,0.00348464,103890.0,103880.0,3.77888499]
[1747021463266,0.00348464,103890.0,103880.0,3.61814624]
[1747021463468,0.00348464,103890.0,103880.0,3.78539226]
[1747021466404,0.00348464,103890.0,103880.0,3.99244656]
[1747021467437,0.00248464,103890.0,103880.0,3.62220312]
[1747021467872,0.00248464,103890.0,103880.0,3.63803239]
[1747021468198,0.00348464,103890.0,103880.0,3.64103239]
[1747021468980,0.00348464,103890.0,103880.0,3.16664822]
[1747021469180,0.00348464,103890.0,103880.0,3.65537174]
[1747021469437,0.00348464,103890.0,103880.0,3.99537174]
[1747021472420,0.16725394,103910.0,103900.0,0.07699645]
[1747021472598,0.16725394,103910.0,103900.0,1.6429649]
[1747021472599,0.16739925,103910.0,103900.0,1.6429649]
[1747021472810,0.16739925,103910.0,103900.0,1.64104021]
[1747021473012,0.16739925,103910.0,103900.0,1.22258221]
[1747021473174,0.16739925,103910.0,103900.0,1.51367721]
[1747021473378,0.17702277,103910.0,103900.0,1.51367721]
[1747021473601,0.17902277,103910.0,103900.0,1.51367721]
[1747021473805,0.18102277,103910.0,103900.0,1.51467721]
[1747021474664,0.18102277,103910.0,103900.0,1.50505304]
[1747021474881,0.17139925,103910.0,103900.0,0.77132728]
[1747021475106,0.17139925,103910.0,103900.0,0.8507004]
[1747021475319,0.17139925,103910.0,103900.0,0.83145159]
[1747021475528,0.20359925,103910.0,103900.0,0.78332839]
[1747021477504,0.20359925,103910.0,103900.0,1.11370376]
[1747021477781,0.20359925,103910.0,103900.0,1.12332839]
[1747021478223,0.29945355,103910.0,103900.0,1.11370376]
[1747021478433,0.29945355,103910.0,103900.0,0.469342]
[1747021478640,0.29945355,103910.0,103900.0,0.341]
[1747021479064,0.29945355,103910.0,103900.0,0.58536176]
[1747021480890,0.29945355,103910.0,103900.0,0.341]
[1747021485450,0.29945355,103910.0,103900.0,0.50138406]
[1747021486448,0.29945355,103910.0,103900.0,0.341]
[1747021486895,0.29945355,103910.0,103900.0,0.50138406]
[1747021489421,0.29945355,103910.0,103900.0,0.341]
[1747021491800,0.29945355,103910.0,103900.0,0.50138406]
[1747021493462,0.29945355,103910.0,103900.0,0.341]
[1747021496894,0.29945355,103910.0,103900.0,0.001]
[1747021497107,0.29945355,103910.0,103900.0,0.341]
[1747021500436,0.41049355,103910.0,103900.0,0.001]
[1747021500676,0.57087761,103910.0,103900.0,0.001]
[1747021500911,0.59888877,103910.0,103900.0,0.001]
[1747021501141,1.01294876,103910.0,103900.0,0.001]
[1747021501358,1.20037241,103910.0,103900.0,0.001]
[1747021501814,1.13531242,103910.0,103900.0,0.001]
[1747021502024,0.21176179,103890.0,103880.0,0.002]
[1747021502232,0.736801,103890.0,103880.0,0.002]
[1747021503509,0.737801,103890.0,103880.0,0.002]
[1747021504410,0.46637694,103890.0,103880.0,0.002]
[1747021504668,0.46637694,103890.0,103880.0,0.16238406]
[1747021504669,0.56287609,103890.0,103880.0,0.16238406]
[1747021505065,0.56287609,103890.0,103880.0,0.17995877]
[1747021505322,0.56287609,103890.0,103880.0,0.01957471]
[1747021505800,0.56287609,103890.0,103880.0,0.002]
[1747021511510,0.56287609,103890.0,103880.0,0.24652219]
[1747021511717,0.54667609,103890.0,103880.0,0.24652219]
[1747021512157,0.21276179,103890.0,103880.0,0.67538114]
[1747021512438,0.03950067,103890.0,103880.0,2.31958058]
[1747021512638,0.03950067,103890.0,103880.0,2.31958067]
[1747021512917,0.03950067,103890.0,103880.0,2.32920651]
[1747021513548,0.001,103890.0,103880.0,2.32920651]
[1747021513823,0.001,103890.0,103880.0,2.57167699]
[1747021514097,0.02987465,103890.0,103880.0,2.3271548]
[1747021514329,0.02987455,103890.0,103880.0,2.3271548]
[1747021515003,0.03949965,103890.0,103880.0,2.3271548]
[1747021515215,0.03949965,103890.0,103880.0,2.7271548]
[1747021516006,0.02987455,103890.0,103880.0,2.7271548]
[1747021516218,0.02987455,103890.0,103880.0,2.7281548]
[1747021516419,0.03949974,103890.0,103880.0,2.7281548]
[1747021516847,0.03849974,103890.0,103880.0,2.8391948]
[1747021517048,0.03849974,103890.0,103880.0,2.8401948]
[1747021517945,0.16939925,103910.0,103900.0,0.00962436]
[1747021518166,0.26525355,103910.0,103900.0,1.18501238]
[1747021518392,0.26525355,103910.0,103900.0,1.18501265]
[1747021518604,0.26525355,103910.0,103900.0,1.19463719]
[1747021518813,0.00214531,103910.0,103900.0,1.55013719]
[1747021519047,0.03101523,103910.0,103900.0,1.58558544]
[1747021519279,0.00814531,103910.0,103900.0,1.58658544]
[1747021519492,0.01776818,103910.0,103900.0,1.58658544]
[1747021519702,0.03701467,103910.0,103900.0,1.98658544]
[1747021519911,0.0436381,103910.0,103900.0,1.98558544]
[1747021520193,0.0406381,103910.0,103900.0,1.98558544]
[1747021520414,0.0426381,103910.0,103900.0,1.98558544]
[1747021520832,0.02339124,103910.0,103900.0,1.98558544]
[1747021521034,0.03301448,103910.0,103900.0,1.98558544]
[1747021521478,0.00414531,103910.0,103900.0,1.98558544]
[1747021521727,0.02339124,103910.0,103900.0,2.09658544]
[1747021522367,0.03201448,103910.0,103900.0,2.09658544]
[1747021522591,0.03101439,103910.0,103900.0,2.09658544]
[1747021522799,0.04063763,103910.0,103900.0,2.09758544]
[1747021523009,0.04063763,103910.0,103900.0,2.09858544]
[1747021523466,0.03101439,103910.0,103900.0,2.09858544]
[1747021523666,0.04063763,103910.0,103900.0,2.09858544]
[1747021524906,0.03101439,103910.0,103900.0,2.09858544]
[1747021525653,0.03101439,103910.0,103900.0,2.20958544]
[1747021525876,0.04063773,103910.0,103900.0,2.20958544]
[1747021526079,0.03101439,103910.0,103900.0,2.20958544]
[1747021526510,0.04063763,103910.0,103900.0,2.20958544]
[1747021528320,0.04063763,103910.0,103900.0,1.98758544]
[1747021528538,0.04063763,103910.0,103900.0,2.09858544]
[1747021531271,0.05026106,103910.0,103900.0,2.09858544]
[1747021531479,0.04063763,103910.0,103900.0,2.09858544]
[1747021531696,0.01176818,103910.0,103900.0,2.09858544]
[1747021531915,0.02139115,103910.0,103900.0,2.09858544]
[1747021532117,0.03101439,103910.0,103900.0,2.09858544]
[1747021532331,0.22348864,103910.0,103900.0,1.96833719]
[1747021532533,0.22906632,103910.0,103900.0,0.868289]
[1747021532743,0.24446632,103910.0,103900.0,0.58652219]
[1747021532965,0.24446632,103910.0,103900.0,0.675856]
[1747021533188,0.24446632,103910.0,103900.0,0.475856]
[1747021533627,0.24446632,103910.0,103900.0,0.72037819]
[1747021535846,0.34032062,103910.0,103900.0,0.342]
[1747021536273,0.34032062,103910.0,103900.0,0.650142]
[1747021536494,0.34032062,103910.0,103900.0,0.89466419]
[1747021537528,0.34032062,103910.0,103900.0,0.650142]
[1747021537771,0.34032062,103910.0,103900.0,0.89466419]
[1747021538190,0.32492062,103910.0,103900.0,0.89466419]
[1747021538560,0.34132062,103910.0,103900.0,0.89466419]
[1747021538968,0.04336855,103910.0,103900.0,0.95241202]
[1747021539192,0.23311291,103910.0,103900.0,0.97166082]
[1747021539575,0.24273662,103910.0,103900.0,0.98128499]
[1747021539773,0.23311365,103910.0,103900.0,0.98128499]
[1747021540103,0.0406394,103910.0,103900.0,0.99090907]
[1747021540308,0.24911365,103910.0,103900.0,0.97166082]
[1747021540975,0.23949041,103910.0,103900.0,0.96203656]
[1747021541174,0.25449041,103910.0,103900.0,0.96203656]
[1747021542292,0.25449041,103910.0,103900.0,0.97166101]
[1747021542949,0.25449041,103910.0,103900.0,0.98128518]
[1747021543245,0.24486689,103910.0,103900.0,0.97166101]
[1747021543496,0.24486689,103910.0,103900.0,0.96203656]
[1747021543720,0.23524327,103910.0,103900.0,0.89466419]
[1747021543945,0.23524327,103910.0,103900.0,0.96203665]
[1747021544163,0.23524327,103910.0,103900.0,0.97166119]
[1747021545197,0.79745976,103910.0,103900.0,0.002]
[1747021545406,0.81200061,103910.0,103900.0,0.002]
[1747021545627,0.86200061,103910.0,103900.0,0.002]
[1747021545845,0.86200061,103910.0,103900.0,0.001]
[1747021545846,1.21300061,103910.0,103900.0,0.001]
[1747021546309,0.24430255,103870.0,103860.0,0.002]
[1747021546549,0.35522255,103870.0,103860.0,0.112892]
[1747021546795,0.35522255,103870.0,103860.0,0.342]
[1747021547013,0.35522255,103870.0,103860.0,0.452892]
[1747021547232,0.35522255,103870.0,103860.0,0.13742349]
[1747021547649,0.35522255,103870.0,103860.0,0.47790813]
[1747021548314,0.45207685,103870.0,103860.0,0.48090813]
[1747021548540,0.45207685,103870.0,103860.0,0.37301613]
[1747021548793,0.45207685,103870.0,103860.0,0.00848464]
[1747021550571,0.69659904,103870.0,103860.0,0.00848464]
[1747021550832,0.69659904,103870.0,103860.0,0.00548464]
[1747021551054,0.69559904,103870.0,103860.0,0.00348464]
[1747021551440,0.45107685,103870.0,103860.0,0.00248464]
[1747021551904,0.45207685,103870.0,103860.0,0.00348464]
[1747021552079,0.45207685,103870.0,103860.0,0.00248464]
[1747021552510,0.45307685,103870.0,103860.0,0.00248464]
[1747021556885,0.71213989,103870.0,103860.0,0.00248464]
[1747021557309,0.71213989,103870.0,103860.0,0.00657201]
[1747021557514,0.4676177,103870.0,103860.0,0.00248464]